bitfinex/quotes_BTCUSD_20250713
["timestamp","ask_amount","ask_price","bid_price","bid_amount"]
[1752396124502,0.37759516,117650.0,117640.0,0.20364]
[1752396124702,0.58492781,117650.0,117640.0,0.20364]
[1752396161950,0.37759516,117650.0,117640.0,0.20364]
[1752396162153,0.58492781,117650.0,117640.0,0.33148]
[1752396163224,0.58492781,117650.0,117640.0,0.20364]
[1752396163423,0.58492781,117650.0,117640.0,0.33148]
[1752396177496,0.37759516,117650.0,117640.0,0.33148]
[1752396177674,0.58492781,117650.0,117640.0,0.33148]
[1752396183829,8.479e-05,117640.0,117630.0,0.02059113]
[1752396184056,0.20938744,117640.0,117630.0,0.22423113]
[1752396184281,0.21255744,117640.0,117630.0,0.22423113]
[1752396184888,0.21255744,117640.0,117630.0,0.22408958]
[1752396185091,0.21255744,117640.0,117630.0,0.35292958]
[1752396185997,0.21255744,117640.0,117630.0,0.35392958]
[1752396187996,0.22905744,117640.0,117630.0,0.35392958]
[1752396189396,0.02164,117640.0,117630.0,0.35392958]
[1752396189615,0.22897265,117640.0,117630.0,0.35392958]
[1752396190295,0.22897265,117640.0,117630.0,0.35384478]
[1752396191369,0.24417265,117640.0,117630.0,0.35384478]
[1752396193667,0.21247265,117640.0,117630.0,0.35384478]
[1752396197815,0.24397265,117640.0,117630.0,0.35384478]
[1752396199416,0.24397265,117640.0,117630.0,0.35398633]
[1752396199854,0.21247265,117640.0,117630.0,0.35398633]
[1752396202032,0.20947265,117640.0,117630.0,0.35398633]
[1752396202264,0.20947265,117640.0,117630.0,0.35608633]
[1752396202472,0.21158265,117640.0,117630.0,0.35608633]
[1752396208421,0.24338265,117640.0,117630.0,0.35608633]
[1752396215235,0.24338265,117640.0,117630.0,0.35508633]
[1752396215455,0.24338265,117640.0,117630.0,0.35408633]
[1752396215657,0.24438265,117640.0,117630.0,0.35408633]
[1752396228575,0.24438265,117640.0,117630.0,0.35198633]
[1752396237640,0.03705,117640.0,117630.0,0.35198633]
[1752396237823,0.24438265,117640.0,117630.0,0.35198633]
[1752396283535,0.03705,117640.0,117630.0,0.35198633]
[1752396283859,0.24438265,117640.0,117630.0,0.35198633]
[1752396285128,0.24438265,117640.0,117630.0,0.35413633]
[1752396289099,0.24438265,117640.0,117630.0,0.35399478]
[1752396293100,0.24438265,117640.0,117630.0,0.35184478]
[1752396299747,0.03705,117640.0,117630.0,0.35184478]
[1752396299968,0.24438265,117640.0,117630.0,0.35184478]
[1752396304123,0.4517153,117640.0,117630.0,0.22400478]
[1752396304331,0.4517153,117640.0,117630.0,0.35176478]
[1752396304590,0.4517153,117640.0,117630.0,0.35190633]
[1752396305006,1.1525485,117640.0,117630.0,0.21565969]
[1752396305209,0.97069785,117640.0,117630.0,0.33493305]
[1752396305631,0.97069785,117640.0,117620.0,0.0004]
[1752396305851,0.7294252,117640.0,117630.0,0.20364]
[1752396306258,0.7597252,117640.0,117630.0,0.20364]
[1752396306436,0.7617252,117640.0,117630.0,0.20364]
[1752396306637,0.7677552,117640.0,117630.0,0.20364]
[1752396306841,0.8157552,117640.0,117630.0,0.3314]
[1752396307044,1.02308785,117640.0,117630.0,0.3314]
[1752396307278,1.02608785,117640.0,117630.0,0.3314]
[1752396307484,0.0313,117630.0,117620.0,0.00048433]
[1752396307687,0.24065265,117630.0,117620.0,0.00048433]
[1752396307887,0.24368265,117630.0,117620.0,0.00048433]
[1752396308644,0.24568265,117630.0,117620.0,0.12824433]
[1752396310063,0.24768265,117630.0,117620.0,0.12824433]
[1752396310863,0.24768265,117630.0,117620.0,0.13019433]
[1752396311530,0.04035,117630.0,117620.0,0.13019433]
[1752396311738,0.24768265,117630.0,117620.0,0.13019433]
[1752396315138,0.24768265,117630.0,117620.0,0.33387433]
[1752396315338,0.24768265,117630.0,117620.0,0.20416433]
[1752396315539,0.33311258,117630.0,117620.0,0.33192433]
[1752396342817,0.63499158,117630.0,117620.0,0.33192433]
[1752396343546,0.42765893,117630.0,117620.0,0.33192433]
[1752396343749,0.63499158,117630.0,117620.0,0.33192433]
[1752396344382,0.42765893,117630.0,117620.0,0.20416433]
[1752396344584,0.42765893,117630.0,117620.0,0.33192433]
[1752396344915,0.63499158,117630.0,117620.0,0.33192433]
[1752396347807,0.42765893,117630.0,117620.0,0.33192433]
[1752396348069,0.63499158,117630.0,117620.0,0.33192433]
[1752396356412,1.01772388,117630.0,117620.0,0.20416433]
[1752396356628,1.01772388,117630.0,117620.0,0.33216433]
[1752396356877,1.04320588,117630.0,117620.0,0.33216433]
[1752396357090,1.00047358,117630.0,117620.0,0.33216433]
[1752396360550,1.20780623,117630.0,117620.0,0.33216433]
[1752396362289,1.20780623,117630.0,117620.0,0.20368]
[1752396362714,1.20830623,117630.0,117620.0,0.20368]
[1752396363608,1.20830623,117630.0,117620.0,0.33176]
[1752396363813,1.20830623,117630.0,117610.0,0.0004]
[1752396364025,0.4495253,117620.0,117610.0,0.0004]
[1752396364256,0.4516153,117620.0,117610.0,0.0004]
[1752396365121,0.4516153,117620.0,117610.0,0.12844]
[1752396365397,0.4516153,117620.0,117610.0,0.33212]
[1752396367470,0.4526153,117620.0,117610.0,0.33212]
[1752396368041,0.03795,117620.0,117610.0,0.33212]
[1752396368265,0.4526153,117620.0,117610.0,0.33212]
[1752396371319,0.24528265,117620.0,117610.0,0.33212]
[1752396371814,0.4526153,117620.0,117610.0,0.33212]
[1752396373268,0.5026153,117620.0,117610.0,0.33212]
[1752396389279,0.08795,117620.0,117610.0,0.33212]
[1752396389491,0.5026153,117620.0,117610.0,0.33212]
[1752396391092,0.8044943,117620.0,117610.0,0.33212]
[1752396392232,0.88992423,117620.0,117610.0,0.33212]
[1752396394243,0.91540923,117620.0,117610.0,0.33212]
[1752396394570,0.50074393,117620.0,117610.0,0.33212]
[1752396394722,0.91540923,117620.0,117610.0,0.33212]
[1752396395415,0.95183619,117620.0,117610.0,0.33212]
[1752396395697,1.29183619,117620.0,117610.0,0.33212]
[1752396395908,1.25540923,117620.0,117610.0,0.33212]
[1752396399043,1.25540923,117620.0,117600.0,0.00244]
[1752396399247,1.01321658,117620.0,117610.0,0.33176]
[1752396399695,1.04441658,117620.0,117610.0,0.20368]
[1752396399921,1.04757658,117620.0,117600.0,0.00248954]
[1752396400124,1.04757658,117620.0,117610.0,0.20368]
[1752396400332,1.04441658,117620.0,117610.0,0.20368]
[1752396400555,1.25074923,117620.0,117610.0,0.20368]
[1752396400770,1.25390923,117620.0,117610.0,0.3318]
[1752396400978,0.0321,117610.0,117600.0,0.00248954]
[1752396401194,0.24157265,117610.0,117600.0,0.00248954]
[1752396401408,0.24473265,117610.0,117600.0,0.00248954]
[1752396401917,0.27043437,117610.0,117600.0,0.00248954]
[1752396402045,0.27043437,117610.0,117600.0,0.13060954]
[1752396403057,0.06310172,117610.0,117600.0,0.13060954]
[1752396403547,0.27043437,117610.0,117600.0,0.13060954]
[1752396403768,0.06310172,117610.0,117600.0,0.13060954]
[1752396403990,0.27043437,117610.0,117600.0,0.13060954]
[1752396405390,0.06310172,117610.0,117600.0,0.33428954]
[1752396405822,0.27043437,117610.0,117600.0,0.33428954]
[1752396406040,0.06310172,117610.0,117600.0,0.33428954]
[1752396406257,0.27043437,117610.0,117600.0,0.33428954]
[1752396408688,0.06310172,117610.0,117600.0,0.33428954]
[1752396408893,0.27043437,117610.0,117600.0,0.33428954]
[1752396413889,0.06310172,117610.0,117600.0,0.33428954]
[1752396414144,0.27043437,117610.0,117600.0,0.33428954]
[1752396417288,0.57231337,117610.0,117600.0,0.33428954]
[1752396420798,0.36498072,117610.0,117600.0,0.33637954]
[1752396421003,0.57231337,117610.0,117600.0,0.33637954]
[1752396423370,0.32758072,117610.0,117600.0,0.54371219]
[1752396423578,0.32758072,117610.0,117600.0,0.57616219]
[1752396424230,0.32758072,117610.0,117600.0,0.57391219]
[1752396424453,0.32758072,117610.0,117600.0,0.55881219]
[1752396424676,0.32758072,117610.0,117600.0,0.54371219]
[1752396427344,0.32758072,117610.0,117600.0,0.33637954]
[1752396434297,0.32758072,117610.0,117600.0,0.54371219]
[1752396435081,0.37758072,117610.0,117600.0,0.54371219]
[1752396438863,0.37758072,117610.0,117600.0,0.33637954]
[1752396441538,0.37758072,117610.0,117600.0,0.54371219]
[1752396442487,0.37758072,117610.0,117600.0,0.20825954]
[1752396442711,0.37758072,117610.0,117600.0,0.33653954]
[1752396445414,0.37758072,117610.0,117600.0,0.20825954]
[1752396445620,0.37758072,117610.0,117600.0,0.33657954]
[1752396447060,0.37758072,117610.0,117600.0,0.20825954]
[1752396447267,0.58491337,117610.0,117600.0,0.33657954]
[1752396453300,0.58813337,117610.0,117600.0,0.33657954]
[1752396454010,0.58813337,117610.0,117600.0,0.20825954]
[1752396454202,0.59009337,117610.0,117600.0,0.33653954]
[1752396463025,0.60629337,117610.0,117600.0,0.33653954]
[1752396464017,0.62209337,117610.0,117600.0,0.33653954]
[1752396466675,0.41476072,117610.0,117600.0,0.33653954]
[1752396466904,0.62209337,117610.0,117600.0,0.33653954]
[1752396470934,0.62209337,117610.0,117600.0,0.33444954]
[1752396472202,0.41476072,117610.0,117600.0,0.33444954]
[1752396472407,0.62209337,117610.0,117600.0,0.33444954]
[1752396482214,0.41476072,117610.0,117600.0,0.33444954]
[1752396482429,0.62209337,117610.0,117600.0,0.33444954]
[1752396482870,0.41476072,117610.0,117600.0,0.33444954]
[1752396483084,0.62209337,117610.0,117600.0,0.33444954]
[1752396483348,0.41476072,117610.0,117600.0,0.33444954]
[1752396483847,0.62209337,117610.0,117600.0,0.33444954]
[1752396489168,0.41476072,117610.0,117600.0,0.33444954]
[1752396489386,0.62209337,117610.0,117600.0,0.33444954]
[1752396495825,0.41476072,117610.0,117600.0,0.33444954]
[1752396496040,0.62209337,117610.0,117600.0,0.33444954]
[1752396504872,0.41476072,117610.0,117600.0,0.33444954]
[1752396505084,0.62209337,117610.0,117600.0,0.33444954]
[1752396506904,0.41476072,117610.0,117600.0,0.33444954]
[1752396507229,0.62209337,117610.0,117600.0,0.33444954]
[1752396509487,0.41476072,117610.0,117600.0,0.33444954]
[1752396509942,0.62209337,117610.0,117600.0,0.33444954]
[1752396510365,0.41476072,117610.0,117600.0,0.33444954]
[1752396510568,0.62209337,117610.0,117600.0,0.33444954]
[1752396512081,1.046e-05,117600.0,117590.0,0.22303265]
[1752396512224,1.046e-05,117600.0,117590.0,0.42876265]
[1752396513132,1.046e-05,117600.0,117590.0,0.55708265]
[1752396513550,1.046e-05,117600.0,117590.0,0.55808265]
[1752396514435,0.00835038,117600.0,117590.0,0.55808265]
[1752396514643,1.046e-05,117600.0,117590.0,0.55808265]
[1752396514993,1.046e-05,117600.0,117590.0,0.56008265]
[1752396516783,1.046e-05,117600.0,117590.0,0.54478265]
[1752396518638,0.0083793,117600.0,117590.0,0.54478265]
[1752396518878,1.046e-05,117600.0,117590.0,0.54478265]
[1752396523400,0.00840737,117600.0,117590.0,0.54478265]
[1752396529784,0.00840737,117600.0,117590.0,0.49238265]
[1752396531690,0.00840737,117600.0,117590.0,0.33705]
[1752396531897,0.00840737,117600.0,117590.0,0.54438265]
[1752396536216,0.00840737,117600.0,117590.0,0.33705]
[1752396536450,0.00840737,117600.0,117590.0,0.54438265]
[1752396540314,0.00840737,117600.0,117590.0,0.33705]
[1752396540674,0.00840737,117600.0,117590.0,0.54438265]
[1752396546045,0.02370737,117600.0,117590.0,0.54438265]
[1752396547524,0.03870737,117600.0,117590.0,0.54438265]
[1752396548714,0.03870737,117600.0,117590.0,0.33705]
[1752396548928,0.04181691,117600.0,117590.0,0.33705]
[1752396549131,0.04181691,117600.0,117590.0,0.54438265]
[1752396549598,0.04181691,117600.0,117590.0,0.33705]
[1752396549794,0.04181691,117600.0,117590.0,0.54438265]
[1752396550210,0.04181691,117600.0,117590.0,0.33705]
[1752396550411,0.04181691,117600.0,117590.0,0.54438265]
[1752396550929,0.04181691,117600.0,117590.0,0.33705]
[1752396551080,0.04181691,117600.0,117590.0,0.54438265]
[1752396551449,0.04181691,117600.0,117590.0,0.33705]
[1752396551666,0.04397691,117600.0,117590.0,0.33504]
[1752396551891,0.04397691,117600.0,117590.0,0.54237265]
[1752396552311,0.04397691,117600.0,117590.0,0.33504]
[1752396553196,0.04397691,117600.0,117590.0,0.54237265]
[1752396554329,0.04397691,117600.0,117590.0,0.33504]
[1752396554462,0.04397691,117600.0,117590.0,0.54237265]
[1752396561867,0.04397691,117600.0,117590.0,0.54444265]
[1752396562195,0.04397691,117600.0,117590.0,0.33504]
[1752396562442,0.04397691,117600.0,117590.0,0.54237265]
[1752396571011,0.04397691,117600.0,117590.0,0.33504]
[1752396572026,0.04397691,117600.0,117590.0,0.33711]
[1752396583497,0.03869691,117600.0,117590.0,0.33711]
[1752396584112,0.03869691,117600.0,117590.0,0.54444265]
[1752396594256,0.03869691,117600.0,117590.0,0.33711]
[1752396594468,0.03869691,117600.0,117590.0,0.54444265]
[1752396600908,0.4094302,117610.0,117590.0,0.56169265]
[1752396601101,0.4094302,117610.0,117600.0,0.20733265]
[1752396601320,0.4094302,117610.0,117600.0,0.20942265]
[1752396601321,0.3594302,117610.0,117600.0,0.20942265]
[1752396603254,0.30192848,117610.0,117600.0,0.4167553]
[1752396603458,0.30192848,117610.0,117600.0,0.4190053]
[1752396606237,0.30192848,117610.0,117600.0,0.4167553]
[1752396609400,0.30192848,117610.0,117600.0,0.5449553]
[1752396611147,0.30192848,117610.0,117600.0,0.33762265]
[1752396613322,0.30192848,117610.0,117600.0,0.5449553]
[1752396613960,0.30192848,117610.0,117600.0,0.5630053]
[1752396614160,0.30192848,117610.0,117600.0,0.5472053]
[1752396615199,0.30192848,117610.0,117600.0,0.63263523]
[1752396615378,0.30192848,117610.0,117600.0,0.67235566]
[1752396617596,0.30192848,117610.0,117600.0,0.68689651]
[1752396626084,0.30192848,117610.0,117600.0,0.79281651]
[1752396629863,0.30192848,117610.0,117600.0,0.79351651]
[1752396631381,0.30192848,117610.0,117600.0,1.13351651]
[1752396632353,0.30192848,117610.0,117600.0,1.13551651]
[1752396637647,0.30192848,117610.0,117600.0,1.13851651]
[1752396641581,0.30192848,117610.0,117600.0,0.72385121]
[1752396641784,0.30192848,117610.0,117600.0,1.13851651]
[1752396645869,0.30192848,117610.0,117600.0,1.12231651]
[1752396649253,0.30192848,117610.0,117600.0,1.10651651]
[1752396649921,0.30192848,117610.0,117600.0,1.31015651]
[1752396651465,0.30192848,117610.0,117600.0,1.30790651]
[1752396658356,0.30192848,117610.0,117600.0,0.89324121]
[1752396658546,0.30192848,117610.0,117600.0,1.30790651]
[1752396660287,0.30192848,117610.0,117600.0,1.31015651]
[1752396660493,0.30192848,117610.0,117600.0,1.32575651]
[1752396663539,0.30192848,117610.0,117600.0,1.31015651]
[1752396665519,0.30192848,117610.0,117600.0,1.30790651]
[1752396669760,0.30192848,117610.0,117600.0,1.31015651]
[1752396669977,0.30192848,117610.0,117600.0,1.32605651]
[1752396673776,0.30192848,117610.0,117600.0,1.31015651]
[1752396674770,0.30192848,117610.0,117600.0,1.20423651]
[1752396675192,0.30192848,117610.0,117600.0,1.31011651]
[1752396675538,0.30192848,117610.0,117600.0,0.89545121]
[1752396675744,0.30192848,117610.0,117600.0,1.30786651]
[1752396680949,0.30192848,117610.0,117600.0,0.89320121]
[1752396681178,0.33232848,117610.0,117600.0,0.78732121]
[1752396681369,0.33737848,117610.0,117600.0,1.20198651]
[1752396681635,0.3252448,117610.0,117600.0,1.20198651]
[1752396683025,0.3252448,117610.0,117600.0,0.99834651]
[1752396683915,0.3221448,117610.0,117600.0,0.99834651]
[1752396685325,0.3221448,117610.0,117600.0,1.30786651]
[1752396686504,0.3252448,117610.0,117600.0,1.30786651]
[1752396687037,0.3221448,117610.0,117600.0,1.30786651]
[1752396689235,0.3252448,117610.0,117600.0,1.30786651]
[1752396689582,0.3271948,117610.0,117600.0,1.30786651]
[1752396690034,0.3252448,117610.0,117600.0,1.30786651]
[1752396691274,0.3252448,117610.0,117600.0,1.20198651]
[1752396695390,0.3252448,117610.0,117600.0,1.30786651]
[1752396695843,0.3273448,117610.0,117600.0,1.30786651]
[1752396696129,0.3273448,117610.0,117600.0,0.89320121]
[1752396696336,0.3273448,117610.0,117600.0,1.30786651]
[1752396701342,0.3273448,117610.0,117600.0,0.89320121]
[1752396701545,0.3273448,117610.0,117600.0,1.30786651]
[1752396701745,0.3273448,117610.0,117600.0,1.30577651]
[1752396715386,0.3273448,117610.0,117600.0,1.30790651]
[1752396719287,0.3252448,117610.0,117600.0,1.30790651]
[1752396722093,0.3273448,117610.0,117600.0,1.30790651]
[1752396733721,0.3273448,117610.0,117600.0,0.89324121]
[1752396733918,0.3273448,117610.0,117600.0,1.30790651]
[1752396735659,0.3273448,117610.0,117600.0,0.89324121]
[1752396735842,0.3273448,117610.0,117600.0,1.30790651]
[1752396738062,0.3273448,117610.0,117600.0,0.89324121]
[1752396738297,0.3273448,117610.0,117600.0,1.30790651]
[1752396746750,0.3273448,117610.0,117600.0,0.89324121]
[1752396746954,0.3273448,117610.0,117600.0,1.30790651]
[1752396773168,0.3273448,117610.0,117600.0,0.89324121]
[1752396773368,0.3273448,117610.0,117600.0,1.30790651]
[1752396783865,0.3273448,117610.0,117600.0,0.96790651]
[1752396786956,0.3273448,117610.0,117600.0,0.55324121]
[1752396787375,0.3273448,117610.0,117600.0,0.96790651]
[1752396790190,0.3273448,117610.0,117600.0,0.55324121]
[1752396790346,0.3273448,117610.0,117600.0,0.96790651]
[1752396791438,0.3273448,117610.0,117600.0,0.55324121]
[1752396791624,0.3273448,117610.0,117600.0,0.96790651]
[1752396822104,0.3273448,117610.0,117600.0,0.55324121]
[1752396822311,0.3273448,117610.0,117600.0,0.96790651]
[1752396828346,0.3273448,117610.0,117600.0,0.76057386]
[1752396828559,0.3273448,117610.0,117600.0,0.96790651]
[1752396829277,0.3252448,117610.0,117600.0,0.96790651]
[1752396830670,0.2917448,117610.0,117600.0,0.96790651]
[1752396835502,0.3241448,117610.0,117600.0,0.96790651]
[1752396836596,0.2917448,117610.0,117600.0,0.96790651]
[1752396841632,0.2917448,117610.0,117600.0,0.55324121]
[1752396841822,0.2917448,117610.0,117600.0,0.96790651]
[1752396845216,0.3072448,117610.0,117600.0,0.96790651]
[1752396846143,0.3238448,117610.0,117600.0,0.96790651]
[1752396852880,0.2917448,117610.0,117600.0,0.96790651]
[1752396858309,0.3226448,117610.0,117600.0,0.96790651]
[1752396858471,0.3257648,117610.0,117600.0,0.96790651]
[1752396860911,0.3226448,117610.0,117600.0,0.96790651]
[1752396861402,0.3257648,117610.0,117600.0,0.96790651]
[1752396867907,0.3278048,117610.0,117600.0,0.96790651]
[1752396874827,0.3070448,117610.0,117600.0,0.96790651]
[1752396875232,0.3223448,117610.0,117600.0,0.96790651]
[1752396877390,0.3253748,117610.0,117600.0,0.96790651]
[1752396882359,0.3274448,117610.0,117600.0,0.96790651]
[1752396884501,0.3274448,117610.0,117600.0,0.75844386]
[1752396888131,0.3274448,117610.0,117600.0,0.96577651]
[1752396888663,0.3274448,117610.0,117600.0,0.75844386]
[1752396890185,0.3274448,117610.0,117600.0,0.96577651]
[1752396896919,0.3274448,117610.0,117600.0,0.75844386]
[1752396904908,0.3274448,117610.0,117600.0,0.96577651]
[1752396905337,0.3274448,117610.0,117600.0,0.55111121]
[1752396905560,0.3274448,117610.0,117600.0,0.96577651]
[1752396916811,0.3274448,117610.0,117600.0,0.55111121]
[1752396916966,0.3274448,117610.0,117600.0,0.96577651]
[1752396922132,0.3274448,117610.0,117600.0,0.75844386]
[1752396923538,0.3274448,117610.0,117600.0,0.55111121]
[1752396923739,0.3274448,117610.0,117600.0,0.75844386]
[1752396925743,0.3274448,117610.0,117600.0,0.55111121]
[1752396925928,0.3274448,117610.0,117600.0,0.75844386]
[1752396941114,0.3274448,117610.0,117600.0,0.96781651]
[1752396941309,0.2917448,117610.0,117600.0,0.96781651]
[1752396953910,0.3227448,117610.0,117600.0,0.96781651]
[1752396956574,0.3259048,117610.0,117600.0,0.55315121]
[1752396956831,0.3259048,117610.0,117600.0,0.96781651]
[1752396957441,0.3279948,117610.0,117600.0,0.96781651]
[1752396963836,0.3279948,117610.0,117600.0,0.76048386]
[1752396964761,0.3279948,117610.0,117600.0,0.96781651]
[1752396965987,0.3279948,117610.0,117600.0,0.76048386]
[1752396987043,0.3279948,117610.0,117600.0,0.55315121]
[1752396987331,0.3279948,117610.0,117600.0,0.76048386]
[1752396991297,0.3279948,117610.0,117600.0,0.55315121]
[1752396991511,0.3279948,117610.0,117600.0,0.76048386]
[1752397011312,0.3279948,117610.0,117600.0,0.55315121]
[1752397011510,0.3279948,117610.0,117600.0,0.76048386]
[1752397012214,0.3279948,117610.0,117600.0,0.55315121]
[1752397012417,0.3279948,117610.0,117600.0,0.76048386]
[1752397016575,0.3279948,117610.0,117600.0,0.55315121]
[1752397016834,0.3279948,117610.0,117600.0,0.76048386]
[1752397033134,0.3279948,117610.0,117600.0,0.63156231]
[1752397034354,0.3279948,117610.0,117600.0,0.88740231]
[1752397035961,0.3279948,117610.0,117600.0,0.68006966]
[1752397036162,0.3279948,117610.0,117600.0,0.88740231]
[1752397045091,0.3279948,117610.0,117600.0,1.09473496]
[1752397045563,0.3279948,117610.0,117600.0,0.88740231]
[1752397048686,0.3279948,117610.0,117600.0,0.88721116]
[1752397049968,0.2917448,117610.0,117600.0,0.88721116]
[1752397050178,0.2917448,117610.0,117600.0,1.09454381]
[1752397050434,0.2917448,117610.0,117600.0,1.09679381]
[1752397050640,0.2917448,117610.0,117600.0,1.15396781]
[1752397051260,0.2917448,117610.0,117600.0,1.70670046]
[1752397051387,0.2917448,117610.0,117600.0,1.49936781]
[1752397052093,0.2917448,117610.0,117600.0,1.49736781]
[1752397052332,0.2917448,117610.0,117600.0,1.50136781]
[1752397052797,0.2917448,117610.0,117600.0,1.83736781]
[1752397053804,0.2917448,117610.0,117600.0,1.72848781]
[1752397054322,0.2917448,117610.0,117600.0,1.73148781]
[1752397054712,0.2917448,117610.0,117600.0,1.72848781]
[1752397054916,0.2917448,117610.0,117600.0,1.73148781]
[1752397055343,0.2917448,117610.0,117600.0,1.84136781]
[1752397056072,0.2917448,117610.0,117600.0,1.54596781]
[1752397060008,0.2917448,117610.0,117600.0,1.44008781]
[1752397062109,0.2917448,117610.0,117600.0,1.73548781]
[1752397063928,0.2917448,117610.0,117600.0,1.53184781]
[1752397065189,0.2917448,117610.0,117600.0,1.84136781]
[1752397068954,0.2917448,117610.0,117600.0,1.53184781]
[1752397072783,0.2917448,117610.0,117600.0,1.51574781]
[1752397074981,0.2917448,117610.0,117600.0,1.50014781]
[1752397075196,0.2917448,117610.0,117600.0,1.80962781]
[1752397078138,0.2917448,117610.0,117600.0,1.79508696]
[1752397079062,0.2917448,117610.0,117600.0,1.80962781]
[1752397080743,0.2917448,117610.0,117600.0,1.80737781]
[1752397081528,0.2917448,117610.0,117600.0,1.79283696]
[1752397081988,0.2917448,117610.0,117600.0,1.80737781]
[1752397083131,0.2917448,117610.0,117600.0,1.70149781]
[1752397085040,0.2917448,117610.0,117600.0,1.49789781]
[1752397085221,0.2917448,117610.0,117600.0,1.80737781]
[1752397089625,0.2917448,117610.0,117600.0,1.79895738]
[1752397091011,0.2917448,117610.0,117600.0,1.69307738]
[1752397091539,0.29166594,117610.0,117600.0,1.69307738]
[1752397093339,0.29166594,117610.0,117600.0,1.48947738]
[1752397095101,0.29166594,117610.0,117600.0,1.49172738]
[1752397095306,0.29166594,117610.0,117600.0,1.80120738]
[1752397096487,0.29166594,117610.0,117600.0,1.69532738]
[1752397097518,0.29166594,117610.0,117600.0,1.39992738]
[1752397100460,0.29166594,117610.0,117600.0,1.19632738]
[1752397100866,0.29166594,117610.0,117600.0,1.20494348]
[1752397101067,0.29166594,117610.0,117600.0,1.42787613]
[1752397101273,0.29166594,117610.0,117600.0,1.44417613]
[1752397101696,0.28318157,117610.0,117600.0,1.69417613]
[1752397102102,0.2746972,117610.0,117600.0,1.69417613]
[1752397102494,0.26621283,117610.0,117600.0,1.69417613]
[1752397103012,0.25772846,117610.0,117600.0,1.69417613]
[1752397103352,0.24924409,117610.0,117600.0,1.69417613]
[1752397103595,0.24924409,117610.0,117600.0,1.98957613]
[1752397103801,0.24076018,117610.0,117600.0,1.98957613]
[1752397104192,0.23227627,117610.0,117600.0,1.98957613]
[1752397104606,0.22379236,117610.0,117600.0,1.98957613]
[1752397105013,0.21530845,117610.0,117600.0,1.98957613]
[1752397105240,0.21530845,117610.0,117600.0,2.29905613]
[1752397108482,0.21530845,117610.0,117600.0,1.98957613]
[1752397112307,0.21530845,117610.0,117600.0,1.97327613]
[1752397113092,0.20682472,117610.0,117600.0,3.30739097]
[1752397113505,0.19834099,117610.0,117600.0,2.67085217]
[1752397113876,0.15640868,117610.0,117600.0,3.33214273]
[1752397114084,0.15640868,117610.0,117600.0,3.07630273]
[1752397114295,0.11603619,117610.0,117600.0,7.55506573]
[1752397114502,0.09203619,117610.0,117600.0,7.55806573]
[1752397114704,0.002,117630.0,117620.0,0.70454074]
[1752397114914,0.0020496,117630.0,117620.0,3.29090262]
[1752397115123,0.03457,117650.0,117630.0,0.40454085]
[1752397115331,0.03461959,117650.0,117640.0,0.6469112]
[1752397115540,0.03461959,117650.0,117640.0,0.90211873]
[1752397115935,0.03461959,117650.0,117640.0,0.92758173]
[1752397116915,0.03461959,117650.0,117640.0,0.72024908]
[1752397121369,0.03461959,117650.0,117640.0,1.01564908]
[1752397121595,0.03674959,117650.0,117640.0,1.01564908]
[1752397122375,0.03674959,117650.0,117640.0,1.22298173]
[1752397122569,0.03674959,117650.0,117640.0,1.01564908]
[1752397123147,4.959e-05,117650.0,117640.0,1.22298173]
[1752397123759,0.03054959,117650.0,117640.0,1.22298173]
[1752397123974,4.959e-05,117650.0,117640.0,0.92983173]
[1752397124800,5.17e-06,117650.0,117640.0,0.92983173]
[1752397125150,5.17e-06,117650.0,117640.0,1.57923173]
[1752397130025,5.17e-06,117650.0,117640.0,1.57698173]
[1752397132059,5.17e-06,117650.0,117640.0,1.47114173]
[1752397132807,0.03502,117660.0,117650.0,0.01454085]
[1752397132980,0.03715,117660.0,117650.0,0.77063608]
[1752397133410,0.03715,117660.0,117650.0,0.79609708]
[1752397133984,0.03715,117660.0,117650.0,0.79609675]
[1752397134162,0.04015,117660.0,117650.0,0.79609675]
[1752397135286,0.04015,117660.0,117650.0,0.90193675]
[1752397139294,0.04015,117660.0,117650.0,0.79609675]
[1752397139462,0.04015,117660.0,117650.0,0.82123613]
[1752397140564,0.04015,117660.0,117650.0,0.61390348]
[1752397140944,0.04015,117660.0,117650.0,0.82123613]
[1752397145139,0.04015,117660.0,117650.0,0.92707613]
[1752397145351,0.04015,117660.0,117650.0,1.13059613]
[1752397146579,0.0348,117660.0,117650.0,1.13261613]
[1752397148808,0.0348,117660.0,117650.0,1.02677613]
[1752397149060,0.003,117660.0,117650.0,1.41677613]
[1752397149283,0.003,117660.0,117650.0,2.97827078]
[1752397149508,0.003,117660.0,117650.0,2.27808613]
[1752397149728,0.003,117660.0,117650.0,2.26268613]
[1752397149920,0.040816,117670.0,117650.0,2.20881513]
[1752397150126,0.040816,117670.0,117660.0,0.77039608]
[1752397150330,0.044056,117670.0,117660.0,1.06781608]
[1752397150752,0.044056,117670.0,117660.0,1.09327508]
[1752397151506,0.040816,117670.0,117660.0,1.09327508]
[1752397152310,0.043816,117670.0,117660.0,1.09327508]
[1752397152762,0.047056,117670.0,117660.0,1.09327508]
[1752397153399,0.049086,117670.0,117660.0,1.09327508]
[1752397153630,0.049086,117670.0,117660.0,1.43327508]
[1752397155092,0.014378,117690.0,117680.0,0.0165]
[1752397155346,0.014378,117690.0,117680.0,0.90399313]
[1752397155347,0.04906681,117690.0,117680.0,0.90399313]
[1752397155553,0.04058669,117690.0,117680.0,0.69453608]
[1752397155990,0.03210657,117690.0,117680.0,0.71998908]
[1752397156199,0.02886657,117690.0,117680.0,0.71998908]
[1752397156423,0.02338645,117690.0,117680.0,0.72098908]
[1752397156632,0.0186,117690.0,117680.0,0.72098908]
[1752397156840,0.003,117690.0,117680.0,0.92832173]
[1752397157048,0.003,117690.0,117680.0,0.93672364]
[1752397157266,0.00324,117700.0,117690.0,0.4146653]
[1752397157475,0.00527,117700.0,117690.0,0.62833523]
[1752397157891,0.00527,117700.0,117690.0,0.63360523]
[1752397159359,0.02097,117700.0,117690.0,0.63360523]
[1752397159851,0.03657,117700.0,117690.0,0.63360523]
[1752397161031,0.03657,117700.0,117690.0,0.97360523]
[1752397165204,0.03657,117700.0,117690.0,1.28288523]
[1752397166314,0.03657,117700.0,117690.0,1.17708523]
[1752397169403,0.02087,117700.0,117690.0,0.97562523]
[1752397169937,0.03717,117700.0,117690.0,0.97562523]
[1752397170469,0.03717,117700.0,117690.0,0.97360523]
[1752397171090,0.03717,117700.0,117690.0,0.55893993]
[1752397171266,0.03717,117700.0,117690.0,0.97360523]
[1752397175314,0.03717,117700.0,117690.0,1.28288523]
[1752397179380,0.03717,117700.0,117690.0,1.17708523]
[1752397182543,0.03717,117700.0,117690.0,0.63803258]
[1752397182743,0.03717,117700.0,117690.0,0.77534343]
[1752397184003,0.03717,117700.0,117690.0,0.56801078]
[1752397184205,0.03717,117700.0,117690.0,0.77534343]
[1752397185404,0.03717,117700.0,117690.0,1.08462343]
[1752397185602,0.02699526,117700.0,117690.0,1.08462343]
[1752397185823,0.02897526,117700.0,117690.0,1.08462343]
[1752397187653,0.03208526,117700.0,117690.0,1.08462343]